bitfinex-derivatives/quotes_SOLF0:USTF0_20240923
["timestamp","ask_amount","ask_price","bid_price","bid_amount"]
[1727089442359,7.47,143.99,143.94,8.8343]
[1727089443353,3.4732,143.97,143.95,7.47]
[1727089444353,3.473,143.98,143.95,10.9435]
[1727089444545,3.473,143.98,143.96,7.47]
[1727089444950,3.4731,143.97,143.96,7.47]
[1727089445150,7.47,143.99,143.94,12.308]
[1727089445352,7.47,143.99,143.94,8.8343]
[1727089445552,3.4733,143.96,143.94,8.8343]
[1727089445747,7.47,143.99,143.86,83.38]
[1727089445951,7.47,143.98,143.93,7.47]
[1727089446151,7.47,143.98,143.87,1.4091]
[1727089446152,3.4736,143.95,143.92,6.2946]
[1727089446344,3.4736,143.95,143.93,7.47]
[1727089446653,3.4736,143.95,143.93,10.944]
[1727089447554,3.4734,143.96,143.93,10.944]
[1727089447746,3.4734,143.96,143.94,7.47]
[1727089448051,7.47,143.98,143.94,7.47]
[1727089448359,3.4735,143.96,143.94,7.47]
[1727089448543,3.4735,143.96,143.93,10.944]
[1727089448949,3.4736,143.95,143.93,7.47]
[1727089449345,7.47,143.97,143.92,7.47]
[1727089450051,3.4737,143.95,143.92,7.47]
[1727089450348,7.47,143.96,143.91,7.47]
[1727089450548,7.47,143.94,143.88,2.7311]
[1727089450753,7.47,143.94,143.89,7.47]
[1727089450951,7.47,143.94,143.89,10.9448]
[1727089451449,3.4745,143.91,143.89,7.47]
[1727089452853,3.4744,143.92,143.89,10.9449]
[1727089453455,3.4744,143.92,143.9,3.4748]
[1727089453657,3.4741,143.93,143.91,7.47]
[1727089453954,7.47,143.96,143.91,10.9445]
[1727089455156,3.4739,143.94,143.91,10.9445]
[1727089455352,7.47,143.96,143.92,3.4743]
[1727089455656,7.47,143.97,143.92,7.47]
[1727089456045,7.47,143.97,143.92,10.9441]
[1727089456456,3.4735,143.96,143.92,10.9441]
[1727089456756,7.47,143.97,143.92,10.9441]
[1727089456952,7.47,143.96,143.92,7.47]
[1727089457154,7.47,143.96,143.91,10.9444]
[1727089458851,3.4738,143.94,143.91,10.9444]
[1727089459056,7.47,143.96,143.92,7.47]
[1727089459257,3.4735,143.96,143.92,7.47]
[1727089459458,7.47,143.97,143.92,7.47]
[1727089459657,2.7365,143.99,143.92,7.47]
[1727089459846,7.47,143.96,143.92,7.47]
[1727089460047,3.4736,143.95,143.92,10.9441]
[1727089462358,3.4736,143.95,143.92,3.4741]
[1727089462755,3.4738,143.94,143.91,10.9444]
[1727089462956,3.4738,143.94,143.91,3.4744]
[1727089463955,2.7365,143.99,143.88,2.7311]
[1727089463956,7.47,143.97,143.92,7.47]
[1727089465165,7.47,143.95,143.88,2.7311]
[1727089465370,7.47,143.93,143.88,2.7311]
[1727089465557,7.47,143.93,143.88,13.6762]
[1727089466560,3.4744,143.92,143.88,13.6762]
[1727089467058,3.4745,143.91,143.88,13.6762]
[1727089468668,3.4745,143.91,143.88,10.9451]
[1727089469273,7.47,143.93,143.88,3.4751]
[1727089469467,2.7365,143.99,143.87,4.8845]
[1727089469681,7.47,143.89,143.82,2.8533]
[1727089469871,10.9457,143.87,143.84,3.476]
[1727089470772,10.9457,143.87,143.85,3.476]
[1727089471769,10.9457,143.87,143.84,3.4761]
[1727089472671,7.47,143.86,143.82,8.8787]
[1727089472873,7.47,143.86,143.82,1.4087]
[1727089473175,3.476,143.85,143.82,4.8852]
[1727089473371,3.476,143.85,143.82,12.3552]
[1727089474078,10.9458,143.86,143.83,3.4764]
[1727089474970,3.4756,143.87,143.84,3.4762]
[1727089475565,3.4757,143.86,143.83,10.9463]
[1727089476876,3.4757,143.86,143.84,3.4762]
[1727089477566,3.4757,143.86,143.83,7.47]
[1727089477567,3.476,143.85,143.82,1.4087]
[1727089477772,7.47,143.86,143.79,59.10289016]
[1727089477974,7.47,143.86,143.8,7.47]
[1727089478174,3.4762,143.84,143.81,3.4768]
[1727089479479,3.4765,143.83,143.8,3.4771]
[1727089480273,2.8907,143.87,143.78,1.3661]
[1727089480274,7.47,143.82,143.78,1.3661]
[1727089480483,7.47,143.8,143.75,7.47]
[1727089481580,7.47,143.8,143.74,1.3661]
[1727089481793,7.47,143.8,143.75,7.47]
[1727089482889,3.4776,143.79,143.76,3.478]
[1727089485384,7.47,143.78,143.75,3.4782]
[1727089485579,7.47,143.76,143.69,3.56064296]
[1727089485777,7.47,143.75,143.7,7.47]
[1727089485983,7.47,143.75,143.73,3.4789]
[1727089486178,3.4783,143.76,143.72,7.47]
[1727089486179,7.47,143.76,143.72,7.47]
[1727089486391,7.47,143.76,143.73,7.47]
[1727089486585,7.47,143.76,143.74,3.4786]
[1727089487392,3.478,143.77,143.74,10.9486]
[1727089488584,10.9478,143.78,143.74,10.9486]
[1727089488984,7.47,143.78,143.74,10.9486]
[1727089489184,10.9476,143.79,143.75,7.47]
[1727089489690,10.9476,143.79,143.7,4.1546]
[1727089489691,3.478,143.77,143.74,10.9485]
[1727089489892,7.47,143.77,143.72,7.47]
[1727089490488,3.4783,143.76,143.71,7.47]
[1727089490989,3.4783,143.76,143.73,3.4788]
[1727089491396,6.9524,143.85,143.74,7.47]
[1727089491694,7.47,143.78,143.75,3.4783]
[1727089491885,10.9478,143.78,143.75,3.4783]
[1727089492085,10.9478,143.78,143.74,10.9485]
[1727089492591,10.9479,143.77,143.74,3.4785]
[1727089493189,7.47,143.76,143.72,3.479]
[1727089493394,7.47,143.76,143.72,10.949]
[1727089493692,3.478,143.77,143.74,3.4786]
[1727089493894,10.948,143.77,143.74,3.4786]
[1727089494398,3.4778,143.78,143.75,3.4783]
[1727089494789,3.4778,143.78,143.74,7.47]
[1727089495498,3.4778,143.78,143.75,3.4784]
[1727089495695,7.47,143.79,143.7,4.1546]
[1727089495895,7.47,143.76,143.72,7.47]
[1727089496199,7.47,143.76,143.73,3.4787]
[1727089496496,7.47,143.77,143.73,7.47]
[1727089496995,7.47,143.76,143.7,4.1546]
[1727089497200,7.47,143.76,143.72,7.47]
[1727089497697,10.9483,143.76,143.73,3.4787]
[1727089498796,3.53275388,143.79,143.73,7.47]
[1727089498998,7.47,143.79,143.74,7.47]
[1727089499391,97.62859805,143.86,143.7,4.1546]
[1727089499392,7.47,143.75,143.71,3.4793]
[1727089499702,7.47,143.75,143.7,11.6246]
[1727089499891,10.9484,143.75,143.72,3.4789]
[1727089500087,10.9484,143.75,143.7,11.6246]
[1727089500295,7.47,143.74,143.7,1.3647]
[1727089500593,7.47,143.72,143.67,7.47]
[1727089500988,10.9491,143.72,143.69,3.4797]
[1727089501700,7.47,143.74,143.7,7.47]
[1727089502402,7.47,143.74,143.71,3.4792]
[1727089502795,10.9488,143.74,143.7,3.4795]
[1727089503298,7.47,143.72,143.7,3.4795]
[1727089503695,7.47,143.72,143.69,3.4798]
[1727089504403,7.47,143.71,143.68,3.4799]
[1727089505493,7.47,143.71,143.67,3.4803]
[1727089505695,7.47,143.69,143.63,4.1565]
[1727089505896,3.4801,143.68,143.64,7.47]
[1727089506396,1.4054,143.77,143.67,7.47]
[1727089506602,3.4795,143.71,143.67,7.47]
[1727089506898,3.4795,143.71,143.67,10.9502]
[1727089507099,10.9496,143.7,143.67,10.9502]
[1727089507288,10.9496,143.7,143.66,3.4805]
[1727089507493,7.47,143.7,143.66,3.4805]
[1727089507900,10.9497,143.7,143.66,3.4805]
[1727089508201,7.47,143.7,143.66,3.4805]
[1727089508795,10.9496,143.7,143.67,3.4802]
[1727089508991,7.47,143.71,143.67,3.4802]
[1727089510401,10.9498,143.7,143.66,3.4805]
[1727089511120,10.9498,143.7,143.67,3.4802]
[1727089511592,3.4798,143.7,143.67,10.9502]
[1727089511898,10.9494,143.71,143.67,10.9502]
[1727089512099,10.9494,143.71,143.68,3.4801]
[1727089512397,7.47,143.71,143.68,3.4801]
[1727089513404,7.47,143.71,143.67,7.47]
[1727089513405,1.4054,143.77,143.7,7.47]
[1727089513701,2.7618,143.78,143.73,7.47]
[1727089513899,10.2318,143.78,143.73,10.9488]
[1727089514101,7.47,143.76,143.71,7.47]
[1727089514402,3.4784,143.75,143.71,10.9492]
[1727089514606,7.47,143.75,143.71,3.4792]
[1727089514808,7.47,143.74,143.71,3.4792]
[1727089515196,10.9488,143.74,143.7,3.4795]
[1727089515502,7.47,143.74,143.7,3.4795]
[1727089516105,10.949,143.73,143.69,3.4798]
[1727089516802,3.4793,143.72,143.68,10.9499]
[1727089517006,3.4793,143.72,143.68,7.47]
[1727089517905,10.9489,143.73,143.69,3.4798]
[1727089518102,10.9489,143.73,143.68,7.47]
[1727089519905,10.9489,143.73,143.7,3.4796]
[1727089520904,10.9493,143.72,143.68,10.9499]
[1727089521104,10.9493,143.72,143.68,3.4799]
[1727089522309,3.4794,143.71,143.68,3.4799]
[1727089523309,3.4794,143.71,143.68,10.9499]
[1727089524109,3.4794,143.71,143.68,7.47]
[1727089524110,3.4795,143.71,143.68,7.47]
[1727089524612,3.4795,143.71,143.63,4.1565]
[1727089524914,3.4795,143.71,143.68,7.47]
[1727089525108,3.4795,143.71,143.68,10.9501]
[1727089529518,7.47,143.75,143.7,7.47]
[1727089529920,3.479,143.73,143.69,7.47]
[1727089530221,7.47,143.75,143.69,7.47]
[1727089530422,3.4792,143.72,143.69,7.47]
[1727089530622,3.4792,143.72,143.68,7.47]
[1727089530822,7.47,143.72,143.68,7.47]
[1727089531023,3.4794,143.71,143.68,10.95]
[1727089531617,3.4796,143.7,143.67,3.4802]
[1727089531812,7.47,143.72,143.67,7.47]
[1727089532623,7.47,143.72,143.68,7.47]
[1727089532816,3.4794,143.71,143.68,10.95]
[1727089533422,7.47,143.71,143.63,4.1565]
[1727089533724,7.47,143.69,143.64,7.47]
[1727089534022,3.4802,143.68,143.65,3.4807]
[1727089535922,7.47,143.68,143.63,2.7559]
[1727089536122,7.47,143.67,143.63,1.3923]
[1727089536528,3.4802,143.68,143.65,7.47]
[1727089536922,3.4802,143.68,143.65,10.9506]
[1727089537131,3.4802,143.68,143.65,10.90165266]
[1727089539829,3.4802,143.68,143.65,10.9506]
[1727089540832,3.4803,143.67,143.65,3.4806]
[1727089543132,7.47,143.68,143.64,7.47]
[1727089543727,3.4804,143.67,143.64,7.47]
[1727089544129,7.47,143.68,143.64,10.9509]
[1727089544334,3.4806,143.66,143.63,7.47]
[1727089544530,7.47,143.64,143.59,1.431]
[1727089544827,10.9512,143.64,143.61,3.4816]
[1727089545025,7.47,143.62,143.47,240.74688674]
[1727089545231,7.47,143.61,143.56,7.47]
[1727089545629,7.47,143.63,143.58,7.47]
[1727089546232,10.9515,143.63,143.58,7.47]
[1727089546436,10.9515,143.63,143.57,7.47]
[1727089546437,7.47,143.62,143.57,7.47]
[1727089547231,10.9516,143.62,143.54,1.4699]
[1727089547440,10.9516,143.62,143.57,7.47]
[1727089547635,10.9516,143.62,143.59,3.4822]
[1727089547831,10.9518,143.61,143.54,1.4699]
[1727089548029,10.9518,143.61,143.56,7.47]
[1727089548234,10.9518,143.61,143.57,3.4826]
[1727089548536,3.482,143.6,143.57,3.4826]
[1727089549234,1.369,143.69,143.57,7.47]
[1727089549436,7.47,143.62,143.57,7.47]
[1727089550038,1.369,143.69,143.59,7.47]
[1727089550235,7.47,143.65,143.61,7.47]
[1727089550835,7.47,143.65,143.63,3.4813]
[1727089551138,7.47,143.66,143.62,7.47]
[1727089551536,7.47,143.66,143.63,3.4812]
[1727089551735,7.47,143.66,143.62,7.47]
[1727089552844,7.47,143.66,143.64,3.4809]
[1727089554546,7.47,143.65,143.63,3.4812]
[1727089555245,7.47,143.64,143.62,3.4815]
[1727089555848,7.47,143.64,143.63,3.4813]
[1727089557141,10.951,143.64,143.6,7.47]
[1727089557450,7.47,143.64,143.6,7.47]
[1727089558243,7.47,143.64,143.62,3.4814]
[1727089559440,7.47,143.65,143.63,3.4813]
[1727089560644,2.8178,143.7,143.64,7.47]
[1727089560854,7.47,143.68,143.64,7.47]
[1727089561052,7.47,143.69,143.65,7.47]
[1727089561244,7.47,143.69,143.67,3.4802]
[1727089561745,7.47,143.69,143.68,3.4801]
[1727089562146,96.32653464,143.71,143.65,7.47]
[1727089562347,103.79653464,143.71,143.66,7.47]
[1727089562743,96.32653464,143.71,143.67,7.47]
[1727089562941,103.79653464,143.71,143.67,7.47]
[1727089563143,2.9092,143.76,143.68,7.47]
[1727089563349,7.47,143.74,143.69,7.47]
[1727089563551,3.4781,143.77,143.71,7.47]
[1727089563852,7.47,143.76,143.71,7.47]
[1727089564051,7.47,143.76,143.73,3.4787]
[1727089564353,11.7,143.77,143.73,3.4787]
[1727089564852,11.7,143.77,143.71,3.4791]
[1727089565148,11.7,143.75,143.71,3.4791]
[1727089565346,15.1785,143.75,143.71,3.4791]
[1727089569053,3.4787,143.74,143.7,4.8095]
[1727089569254,11.7,143.75,143.7,1.3301]
[1727089569553,11.7,143.74,143.69,3.4798]
[1727089570046,3.4791,143.73,143.69,3.4798]
[1727089570246,11.7,143.72,143.63,15.8894]
[1727089571244,3.4797,143.7,143.67,3.4802]
[1727089572453,3.4799,143.69,143.66,3.4805]
[1727089572649,11.7,143.72,143.63,15.8894]
[1727089573456,3.4797,143.7,143.63,15.8894]
[1727089574356,3.4797,143.7,143.66,3.4804]
[1727089576456,3.4795,143.71,143.68,3.48]
[1727089577558,11.7,143.73,143.68,3.48]
[1727089577559,3.4796,143.7,143.68,3.48]
[1727089578354,3.4796,143.7,143.67,3.4802]
[1727089578959,3.4798,143.69,143.66,3.4803]
[1727089579262,11.7,143.71,143.63,15.8894]
[1727089579659,3.4799,143.69,143.66,3.4805]
[1727089586258,3.4801,143.68,143.66,3.4805]
[1727089586463,6.211149,143.73,143.63,1.4561]
[1727089586464,7.48,143.67,143.63,1.4561]
[1727089586659,7.48,143.65,143.6,7.48]
[1727089586865,7.48,143.65,143.63,3.4813]
[1727089587060,7.48,143.67,143.63,3.4813]
[1727089587659,3.4806,143.66,143.63,3.4813]
[1727089589964,3.4808,143.65,143.63,3.4813]
[1727089590361,7.48,143.66,143.62,3.4815]
[1727089590567,10.9611,143.64,143.61,7.48]
[1727089590968,10.9611,143.64,143.61,10.9616]
[1727089591171,10.9611,143.64,143.61,3.4816]
[1727089596274,10.93615307,143.64,143.61,3.4816]
[1727089596575,10.93615307,143.64,143.62,3.4815]
[1727089598177,1.4165,143.72,143.63,7.48]
[1727089598372,7.48,143.67,143.62,7.48]
[1727089598575,3.4809,143.65,143.62,10.9614]
[1727089598775,7.48,143.66,143.62,3.4814]
[1727089598977,7.48,143.64,143.59,8.8085]
[1727089599177,3.4813,143.63,143.59,8.8085]
[1727089599574,3.4813,143.63,143.61,3.4817]
[1727089600079,10.9612,143.64,143.61,10.9617]
[1727089600374,7.48,143.68,143.63,7.48]
[1727089600580,3.4805,143.67,143.63,7.48]
[1727089600782,1.4165,143.72,143.64,7.48]
[1727089600987,1.4165,143.72,143.61,3.4523229]
[1727089600988,10.96,143.69,143.61,3.4523229]
[1727089601176,7.48,143.71,143.67,3.4802]
[1727089601379,7.48,143.71,143.66,7.48]
[1727089601578,3.4797,143.7,143.66,7.48]
[1727089601778,3.4797,143.7,143.67,3.4802]
[1727089602078,6.211149,143.73,143.67,7.48]
[1727089602079,3.4793,143.72,143.67,7.48]
[1727089602279,10.9593,143.72,143.67,7.48]
[1727089602485,7.48,143.72,143.67,7.48]
[1727089602776,1.3559,143.76,143.68,7.48]
[1727089602977,7.48,143.73,143.69,3.4797]
[1727089603584,4.86004258,143.76,143.7,7.48]
[1727089603879,7.48,143.76,143.72,7.48]
[1727089604080,10.9582,143.76,143.72,7.48]
[1727089604282,7.48,143.76,143.72,10.9589]
[1727089604882,6.27253213,143.78,143.71,3.4793]
[1727089604883,7.48,143.75,143.71,3.4793]
[1727089605078,7.48,143.75,143.7,7.48]
[1727089605887,3.4788,143.74,143.7,10.9596]
[1727089606384,3.4788,143.74,143.7,3.4796]
[1727089606982,11.7,143.77,143.68,11.7]
[1727089607383,3.4785,143.75,143.71,3.4792]
[1727089610585,3.4785,143.75,143.72,3.4791]
[1727089613396,3.4786,143.74,143.72,3.4791]
[1727089621098,3.4786,143.74,143.71,3.4792]
[1727089622602,11.7,143.73,143.65,1.356]
[1727089623104,11.7,143.72,143.65,1.356]
[1727089623409,11.7,143.72,143.66,3.4805]
[1727089624509,11.7,143.72,143.65,3.4807]
[1727089625315,3.4801,143.68,143.65,3.4807]
[1727089625497,11.7,143.72,143.64,4.886]
[1727089625697,2.6935,143.71,143.64,3.481]
[1727089625900,3.4805,143.67,143.64,3.481]
[1727089626709,11.7,143.7,143.63,3.4811]
[1727089628304,3.4805,143.67,143.63,10.9711]
[1727089628903,3.4805,143.67,143.64,3.481]
[1727089631209,3.4806,143.66,143.64,3.481]
[1727089631403,7.49,143.66,143.61,7.49]
[1727089631608,6.21170903,143.71,143.61,7.49]
[1727089631809,3.4807,143.66,143.62,7.49]
[1727089632106,7.49,143.67,143.62,7.49]
[1727089632309,3.481,143.65,143.62,7.49]
[1727089632813,3.481,143.65,143.62,10.9714]
[1727089633617,3.4811,143.64,143.61,10.9716]
[1727089634008,7.49,143.66,143.61,7.49]
[1727089634410,7.49,143.66,143.6,7.49]
[1727089635109,3.4812,143.64,143.61,3.4817]
[1727089636918,3.481,143.65,143.61,7.49]
[1727089637515,3.481,143.65,143.62,3.4814]
[1727089637818,3.4811,143.64,143.6,7.49]
[1727089638321,3.4811,143.64,143.61,3.4816]
[1727089638817,3.481,143.65,143.63,3.4813]
[1727089640218,3.481,143.65,143.62,3.4814]
[1727089640219,10.971,143.65,143.62,3.4814]
[1727089642518,3.4811,143.64,143.61,3.4816]
[1727089642710,7.49,143.65,143.62,7.49]
[1727089643514,7.49,143.64,143.59,1.337]
[1727089643716,7.49,143.63,143.59,1.337]
[1727089644019,7.49,143.63,143.6,3.4819]
[1727089644020,10.9715,143.63,143.6,3.4819]
[1727089646123,10.9715,143.63,143.59,1.337]
[1727089646124,7.49,143.63,143.59,4.8191]
[1727089646324,7.49,143.63,143.59,12.3091]
[1727089646626,6.21170903,143.71,143.55,2.7585]
[1727089646627,3.4819,143.61,143.58,3.4824]
[1727089646819,7.49,143.6,143.58,3.4824]
[1727089647423,10.972,143.6,143.58,3.4824]
[1727089648222,10.972,143.6,143.53,4.76823435]
[1727089648422,10.972,143.6,143.55,7.49]
[1727089648924,10.972,143.6,143.53,4.81316956]
[1727089648925,10.972,143.6,143.57,3.4827]
[1727089649319,3.4823,143.59,143.55,7.49]
[1727089649728,3.4823,143.59,143.56,3.4829]
[1727089650926,10.9721,143.6,143.57,3.4827]
[1727089651122,7.49,143.6,143.55,7.49]
[1727089651421,2.7672,143.62,143.53,1.334]
[1727089651422,2.7672,143.62,143.57,7.49]
[1727089651626,10.2572,143.62,143.57,7.49]
[1727089651828,1.4142,143.62,143.57,7.49]
[1727089652025,12.3859,143.62,143.59,3.4821]
[1727089652722,1.353,143.69,143.59,7.49]
[1727089652923,7.49,143.65,143.6,7.49]
[1727089653326,7.49,143.65,143.62,3.4814]
[1727089653621,7.49,143.66,143.61,7.49]
[1727089654124,1.4045,143.68,143.63,7.49]
[1727089654125,7.49,143.67,143.63,7.49]
[1727089654325,1.4045,143.68,143.63,7.49]
[1727089654521,8.843,143.69,143.66,3.4803]
[1727089655121,8.843,143.69,143.64,7.49]
[1727089655624,96.32158941,143.72,143.67,7.49]
[1727089655822,103.81158941,143.72,143.68,7.49]
[1727089656024,103.81158941,143.72,143.7,3.4795]
[1727089656222,7.49,143.71,143.67,7.49]
[1727089656618,7.49,143.71,143.69,3.4797]
[1727089656823,7.49,143.71,143.67,7.49]
[1727089657122,7.49,143.71,143.7,3.4796]
[1727089657835,96.32158941,143.72,143.71,3.4794]
[1727089659627,7.49,143.74,143.73,3.4789]
[1727089659828,7.49,143.75,143.73,3.4789]
[1727089660224,7.49,143.74,143.73,3.4789]
[1727089660427,11.7,143.76,143.73,3.4789]
[1727089661435,11.7,143.76,143.74,3.4786]
[1727089662133,11.7,143.76,143.75,3.4784]
[1727089662438,1.3861,143.77,143.71,11.7]
[1727089662841,1.3861,143.77,143.75,3.4783]
[1727089663032,1.3861,143.77,143.69,15.22071402]
[1727089663537,1.3861,143.77,143.74,3.4785]
[1727089664736,1.3861,143.77,143.75,3.4784]
[1727089665732,1.4155,143.78,143.76,3.4781]
[1727089666437,1.4155,143.78,143.75,3.4783]
[1727089673244,15.18670531,143.79,143.71,11.7]
[1727089673844,15.18670531,143.79,143.76,3.4781]
[1727089674244,15.18670531,143.79,143.75,3.4783]
[1727089674645,3.48670531,143.79,143.71,11.7]
[1727089674846,11.7,143.8,143.71,11.7]
[1727089675150,15.14783183,143.8,143.71,11.7]
[1727089675349,11.7,143.82,143.73,11.7]
[1727089675542,15.15200807,143.82,143.73,11.7]
[1727089676138,15.15200807,143.82,143.77,3.4777]
[1727089678042,11.7,143.8,143.73,11.7]
[1727089678248,11.7,143.8,143.76,3.4781]
[1727089678447,11.7,143.78,143.69,11.7]
[1727089678651,11.7,143.78,143.69,15.18841255]
[1727089678952,11.7,143.78,143.75,3.4783]
[1727089679955,1.3917,143.84,143.73,11.7]
[1727089680152,3.53016911,143.83,143.75,11.7]
[1727089680347,3.53016911,143.83,143.74,1.3593]
[1727089680348,7.48,143.83,143.79,7.48]
[1727089680554,7.48,143.82,143.8,3.477]
[1727089680754,7.48,143.82,143.77,7.48]
[1727089680957,7.48,143.8,143.75,7.48]
[1727089681158,7.48,143.8,143.78,3.4775]
[1727089684265,3.54582782,143.84,143.79,7.48]
[1727089684461,7.48,143.85,143.8,7.48]
[1727089684659,3.40929649,143.84,143.81,3.4768]
[1727089684859,3.40929649,143.84,143.8,7.48]
[1727089685362,7.48,143.82,143.75,2.8069]
[1727089685657,7.48,143.81,143.76,7.48]
[1727089685859,7.48,143.81,143.78,3.4775]
[1727089686357,10.98706283,143.81,143.78,3.4775]
[1727089686756,7.48,143.81,143.78,3.4775]
[1727089687673,7.48,143.84,143.8,7.48]
[1727089688360,7.48,143.84,143.81,3.4769]
[1727089689960,7.48,143.86,143.82,3.4766]
[1727089690168,7.48,143.86,143.82,7.48]
[1727089690364,7.48,143.86,143.83,3.4763]
[1727089690558,7.48,143.85,143.81,7.48]
[1727089692266,7.48,143.84,143.79,7.48]
[1727089693163,7.48,143.84,143.82,3.4766]
[1727089693562,7.48,143.85,143.82,3.4766]
[1727089693761,7.48,143.86,143.83,3.4764]
[1727089693966,7.48,143.86,143.82,7.48]
[1727089694366,10.287,143.88,143.83,7.48]
[1727089694969,10.287,143.88,143.84,3.4762]
[1727089695768,10.287,143.88,143.83,7.48]
[1727089695769,7.48,143.86,143.81,7.48]
[1727089695970,7.48,143.84,143.8,7.48]
[1727089696572,7.48,143.84,143.81,3.4767]
[1727089696769,7.48,143.82,143.77,7.48]
[1727089696978,2.807,143.88,143.77,7.48]
[1727089696979,7.48,143.81,143.77,7.48]
[1727089697277,7.48,143.82,143.78,3.4775]
[1727089697871,1.4174,143.87,143.77,3.4779]
[1727089697872,7.48,143.8,143.77,3.4779]
[1727089701083,7.48,143.8,143.76,10.958]
[1727089701579,7.48,143.79,143.75,3.4782]
[1727089701882,7.48,143.77,143.75,3.4782]
[1727089703781,7.48,143.77,143.76,3.4781]
[1727089703975,2.8168,143.82,143.75,7.48]
[1727089704186,7.48,143.81,143.76,7.48]
[1727089704581,3.42921245,143.83,143.78,7.48]
[1727089704784,7.48,143.82,143.78,7.48]
[1727089705587,7.48,143.81,143.79,3.4773]
[1727089707091,7.48,143.81,143.78,10.9575]
[1727089707386,7.48,143.8,143.75,7.48]
[1727089708291,7.48,143.8,143.77,3.4778]
[1727089709486,7.48,143.79,143.77,3.4778]
[1727089709687,7.48,143.78,143.71,1.324]
[1727089709991,7.48,143.75,143.7,8.9265]
[1727089710389,7.48,143.75,143.72,3.479]
[1727089710790,2.8153,143.86,143.73,3.4787]
[1727089710791,7.48,143.77,143.73,3.4787]
[1727089710987,7.48,143.78,143.72,7.48]
[1727089711488,3.41057759,143.79,143.74,10.9585]
[1727089711688,7.48,143.78,143.74,10.9585]
[1727089712086,7.48,143.77,143.74,3.4785]
[1727089712287,2.8153,143.86,143.74,3.4785]
[1727089712488,11.7,143.79,143.74,3.4785]
[1727089712686,15.26123869,143.79,143.74,3.4785]
[1727089713093,15.26123869,143.79,143.73,3.4788]
[1727089714896,15.26123869,143.79,143.74,3.4786]
[1727089715292,11.7,143.79,143.74,3.4786]
[1727089715695,11.7,143.79,143.75,3.4783]
[1727089716703,11.7,143.79,143.74,3.4786]
[1727089716890,11.7,143.79,143.7,11.7]
[1727089717495,11.7,143.79,143.73,3.4787]
[1727089717695,11.7,143.77,143.68,13.0998]
[1727089718194,11.7,143.77,143.71,3.4792]
[1727089718394,15.12207252,143.77,143.71,3.4792]
[1727089718897,15.12207252,143.77,143.72,3.4791]
[1727089720997,15.12207252,143.77,143.71,3.4793]
[1727089723097,15.12207252,143.77,143.68,13.0998]
[1727089723098,11.7,143.73,143.68,3.48]
[1727089723599,11.7,143.73,143.67,2.7861]